[Event "Early-Titled-Tuesday-Blitz-March-05-2024"]
[Site "Chess.com"]
[Date "2024.03.05"]
[Round "7"]
[White "Nuvas"]
[Black "Yeritsyaan"]
[Result "1/2-1/2"]
[WhiteElo "2805"]
[BlackElo "2614"]
[TimeControl "180+1"]
[EndTime "9:21:15 PST"]
[Termination "Game drawn - insufficient material"]

1. d4 {[%clk 0:02:57]} 1... Nf6 {[%clk 0:02:40.3]} 2. c4 {[%clk 0:02:57.1]} 2...
c5 {[%clk 0:02:38.4]} 3. d5 {[%clk 0:02:57.4]} 3... b5 {[%clk 0:02:36.5]} 4.
cxb5 {[%clk 0:02:58.3]} 4... a6 {[%clk 0:02:36.4]} 5. bxa6 {[%clk 0:02:59]} 5...
e6 {[%clk 0:02:36.7]} 6. Nc3 {[%clk 0:02:56.1]} 6... exd5 {[%clk 0:02:36.5]} 7.
Nxd5 {[%clk 0:02:53.9]} 7... Be7 {[%clk 0:02:36.8]} 8. e4 {[%clk 0:02:53.6]}
8... O-O {[%clk 0:02:28.8]} 9. Bd3 {[%clk 0:02:53.1]} 9... Nxa6 {[%clk
0:02:25.6]} 10. Nxe7+ {[%clk 0:02:30.6]} 10... Qxe7 {[%clk 0:02:25.3]} 11. Ne2
{[%clk 0:02:13]} 11... Nb4 {[%clk 0:02:24.5]} 12. Bb1 {[%clk 0:02:04.4]} 12...
Nxe4 {[%clk 0:02:15]} 13. O-O {[%clk 0:02:04.4]} 13... Bb7 {[%clk 0:02:11.7]}
14. a3 {[%clk 0:01:58.9]} 14... Rfe8 {[%clk 0:01:42.3]} 15. Bf4 {[%clk
0:01:41.3]} 15... Nc6 {[%clk 0:01:34.1]} 16. Re1 {[%clk 0:01:40.6]} 16... Qf6
{[%clk 0:01:26.5]} 17. f3 {[%clk 0:01:16.1]} 17... Ng5 {[%clk 0:01:10]} 18. Bxg5
{[%clk 0:01:02.9]} 18... Qxg5 {[%clk 0:01:08]} 19. Be4 {[%clk 0:01:03.6]} 19...
Rad8 {[%clk 0:01:04.4]} 20. Nc3 {[%clk 0:01:02]} 20... d5 {[%clk 0:00:50.6]} 21.
Nxd5 {[%clk 0:00:37.4]} 21... Nd4 {[%clk 0:00:46.2]} 22. Qc1 {[%clk 0:00:27.3]}
22... Qxc1 {[%clk 0:00:30.7]} 23. Raxc1 {[%clk 0:00:26.4]} 23... Bxd5 {[%clk
0:00:31.2]} 24. Bxd5 {[%clk 0:00:27.1]} 24... Ne2+ {[%clk 0:00:31.9]} 25. Rxe2
{[%clk 0:00:27.7]} 25... Rxe2 {[%clk 0:00:32.6]} 26. Rxc5 {[%clk 0:00:22.5]}
26... Rxb2 {[%clk 0:00:32.4]} 27. h4 {[%clk 0:00:15.9]} 27... h6 {[%clk
0:00:29.8]} 28. a4 {[%clk 0:00:14.2]} 28... Rb1+ {[%clk 0:00:29.2]} 29. Kh2
{[%clk 0:00:14.4]} 29... Ra1 {[%clk 0:00:28.9]} 30. a5 {[%clk 0:00:14.7]} 30...
Rd7 {[%clk 0:00:24.8]} 31. Bc4 {[%clk 0:00:12.5]} 31... g6 {[%clk 0:00:23.3]}
32. a6 {[%clk 0:00:12.2]} 32... Kg7 {[%clk 0:00:23.2]} 33. h5 {[%clk 0:00:12.4]}
33... g5 {[%clk 0:00:21.2]} 34. Rc6 {[%clk 0:00:12.9]} 34... Ra7 {[%clk
0:00:12.7]} 35. Rb6 {[%clk 0:00:12.4]} 35... Ra5 {[%clk 0:00:12.1]} 36. Rb7
{[%clk 0:00:09.4]} 36... R5xa6 {[%clk 0:00:12.6]} 37. Bxa6 {[%clk 0:00:09.4]}
37... Rxa6 {[%clk 0:00:13.2]} 38. Rb4 {[%clk 0:00:09.9]} 38... Rf6 {[%clk
0:00:12.9]} 39. Kg3 {[%clk 0:00:10.2]} 39... Re6 {[%clk 0:00:13.4]} 40. Rb5
{[%clk 0:00:10.4]} 40... Rd6 {[%clk 0:00:12.7]} 41. Re5 {[%clk 0:00:10.4]} 41...
Rf6 {[%clk 0:00:12.9]} 42. Re4 {[%clk 0:00:10.7]} 42... Rf5 {[%clk 0:00:12.6]}
43. Kg4 {[%clk 0:00:09.7]} 43... Rf6 {[%clk 0:00:13]} 44. Rb4 {[%clk 0:00:10.3]}
44... Re6 {[%clk 0:00:13]} 45. Kh3 {[%clk 0:00:10.5]} 45... Rf6 {[%clk
0:00:13.5]} 46. Kg3 {[%clk 0:00:10.5]} 46... Re6 {[%clk 0:00:14.1]} 47. Kf2
{[%clk 0:00:11]} 47... Rf6 {[%clk 0:00:14.5]} 48. Re4 {[%clk 0:00:11.5]} 48...
Rd6 {[%clk 0:00:14.7]} 49. Re2 {[%clk 0:00:11.8]} 49... Rf6 {[%clk 0:00:15]} 50.
Rd2 {[%clk 0:00:12.3]} 50... Rf4 {[%clk 0:00:15.2]} 51. Ke3 {[%clk 0:00:12.2]}
51... Rh4 {[%clk 0:00:15.2]} 52. g4 {[%clk 0:00:12]} 52... Rh1 {[%clk
0:00:15.9]} 53. Re2 {[%clk 0:00:10.7]} 53... Ra1 {[%clk 0:00:16.1]} 54. Kf2
{[%clk 0:00:10.6]} 54... Ra6 {[%clk 0:00:16.5]} 55. Kg3 {[%clk 0:00:11.2]} 55...
Rf6 {[%clk 0:00:17.1]} 56. Rb2 {[%clk 0:00:11.8]} 56... Re6 {[%clk 0:00:17.4]}
57. Rb5 {[%clk 0:00:12.4]} 57... Rf6 {[%clk 0:00:18]} 58. Rb7 {[%clk 0:00:13.1]}
58... Re6 {[%clk 0:00:18.4]} 59. Rb3 {[%clk 0:00:13.7]} 59... Rf6 {[%clk
0:00:19]} 60. Re3 {[%clk 0:00:14.4]} 60... Rd6 {[%clk 0:00:18.7]} 61. f4 {[%clk
0:00:15.1]} 61... gxf4+ {[%clk 0:00:18.3]} 62. Kxf4 {[%clk 0:00:16]} 62... Rf6+
{[%clk 0:00:18.6]} 63. Kg3 {[%clk 0:00:16.6]} 63... Rd6 {[%clk 0:00:18.5]} 64.
Re5 {[%clk 0:00:17]} 64... Rf6 {[%clk 0:00:18.2]} 65. Kh4 {[%clk 0:00:17.3]}
65... Rd6 {[%clk 0:00:18.6]} 66. Rf5 {[%clk 0:00:17.9]} 66... Re6 {[%clk
0:00:18.5]} 67. Rb5 {[%clk 0:00:18.3]} 67... Rd6 {[%clk 0:00:18.7]} 68. g5
{[%clk 0:00:18.1]} 68... Rd4+ {[%clk 0:00:18.3]} 69. Kg3 {[%clk 0:00:17.9]}
69... hxg5 {[%clk 0:00:18.9]} 70. Rxg5+ {[%clk 0:00:18.5]} 70... Kh6 {[%clk
0:00:19.6]} 71. Rf5 {[%clk 0:00:19.2]} 71... Rd7 {[%clk 0:00:17.4]} 72. Kf4
{[%clk 0:00:18.4]} 72... Re7 {[%clk 0:00:15.7]} 73. Kg4 {[%clk 0:00:18.8]} 73...
Re4+ {[%clk 0:00:15.1]} 74. Kf3 {[%clk 0:00:19.5]} 74... Re7 {[%clk 0:00:15.3]}
75. Kf4 {[%clk 0:00:19.5]} 75... Re1 {[%clk 0:00:10.6]} 76. Ra5 {[%clk
0:00:15.2]} 76... Rf1+ {[%clk 0:00:10.1]} 77. Kg4 {[%clk 0:00:15.7]} 77... f5+
{[%clk 0:00:10.4]} 78. Rxf5 {[%clk 0:00:15]} 78... Rxf5 {[%clk 0:00:10.7]} 79.
Kxf5 {[%clk 0:00:15.9]} 79... Kxh5 {[%clk 0:00:11.6]} 1/2-1/2

[Event "Early-Titled-Tuesday-Blitz-March-05-2024"]
[Site "Chess.com"]
[Date "2024.03.05"]
[Round "7"]
[White "bazar-wokzal"]
[Black "AccioChess"]
[Result "0-1"]
[WhiteElo "2566"]
[BlackElo "2362"]
[TimeControl "180+1"]
[EndTime "9:21:21 PST"]
[Termination "AccioChess won by checkmate"]

1. e4 {[%clk 0:03:00.9]} 1... c5 {[%clk 0:02:58.9]} 2. c3 {[%clk 0:03:00.1]}
2... Nf6 {[%clk 0:02:57.7]} 3. e5 {[%clk 0:02:56.7]} 3... Nd5 {[%clk 0:02:57.8]}
4. d4 {[%clk 0:02:56.7]} 4... cxd4 {[%clk 0:02:58.7]} 5. cxd4 {[%clk 0:02:56.9]}
5... d6 {[%clk 0:02:55.4]} 6. Bc4 {[%clk 0:02:56.4]} 6... Nb6 {[%clk 0:02:54.4]}
7. Bb3 {[%clk 0:02:56.7]} 7... dxe5 {[%clk 0:02:47.8]} 8. Qh5 {[%clk 0:02:56.6]}
8... e6 {[%clk 0:02:43.9]} 9. dxe5 {[%clk 0:02:56.2]} 9... Bb4+ {[%clk
0:02:40.2]} 10. Nc3 {[%clk 0:02:56]} 10... Nc6 {[%clk 0:02:38.8]} 11. Nf3 {[%clk
0:02:52]} 11... Qd3 {[%clk 0:02:32.5]} 12. Bd2 {[%clk 0:02:51.9]} 12... Nc4
{[%clk 0:02:24.5]} 13. O-O-O {[%clk 0:02:50.4]} 13... Nxd2 {[%clk 0:02:17.4]}
14. Rxd2 {[%clk 0:02:50.3]} 14... Qg6 {[%clk 0:02:16.9]} 15. Qh3 {[%clk
0:02:45.6]} 15... Bxc3 {[%clk 0:02:09.1]} 16. bxc3 {[%clk 0:02:45.4]} 16... h5
{[%clk 0:01:41.4]} 17. Rhd1 {[%clk 0:02:21.6]} 17... Qg4 {[%clk 0:01:22.3]} 18.
Qg3 {[%clk 0:02:18.9]} 18... Qxg3 {[%clk 0:01:18.2]} 19. hxg3 {[%clk 0:02:18.8]}
19... Ke7 {[%clk 0:01:17.2]} 20. Kb2 {[%clk 0:02:14.7]} 20... Rd8 {[%clk
0:01:15.7]} 21. Rxd8 {[%clk 0:02:13.5]} 21... Nxd8 {[%clk 0:01:16.6]} 22. Nd4
{[%clk 0:02:13.7]} 22... Bd7 {[%clk 0:01:15.3]} 23. f4 {[%clk 0:02:13.6]} 23...
Rc8 {[%clk 0:01:09]} 24. Rh1 {[%clk 0:01:59.9]} 24... g6 {[%clk 0:01:08.2]} 25.
g4 {[%clk 0:01:52.1]} 25... hxg4 {[%clk 0:01:05.7]} 26. Rh4 {[%clk 0:01:51.8]}
26... Nc6 {[%clk 0:00:48.4]} 27. Rxg4 {[%clk 0:01:44]} 27... Rh8 {[%clk
0:00:47.3]} 28. Nf3 {[%clk 0:01:40.1]} 28... Rh1 {[%clk 0:00:35.3]} 29. Rh4
{[%clk 0:01:38.4]} 29... Rf1 {[%clk 0:00:35.2]} 30. Rh2 {[%clk 0:01:25]} 30...
Rf2+ {[%clk 0:00:35]} 31. Ka3 {[%clk 0:01:23.4]} 31... Na5 {[%clk 0:00:32.2]}
32. Nd4 {[%clk 0:01:15.5]} 32... Rxf4 {[%clk 0:00:29.3]} 33. Rh8 {[%clk
0:01:05]} 33... Nc6 {[%clk 0:00:28.1]} 34. Nf3 {[%clk 0:01:01.9]} 34... Re4
{[%clk 0:00:25.2]} 35. Ra8 {[%clk 0:00:59.8]} 35... a6 {[%clk 0:00:23]} 36. Bc2
{[%clk 0:00:43.4]} 36... Re2 {[%clk 0:00:21.5]} 37. Bd3 {[%clk 0:00:35.4]} 37...
Re3 {[%clk 0:00:21.5]} 38. Bf1 {[%clk 0:00:30.5]} 38... Nxe5 {[%clk 0:00:21]}
39. Nxe5 {[%clk 0:00:29.2]} 39... Rxe5 {[%clk 0:00:21.9]} 40. Kb4 {[%clk
0:00:26.5]} 40... Bc6 {[%clk 0:00:19.2]} 41. Rc8 {[%clk 0:00:23.1]} 41... Kd7
{[%clk 0:00:18.4]} 42. Rf8 {[%clk 0:00:22.3]} 42... f5 {[%clk 0:00:18.3]} 43.
Rf7+ {[%clk 0:00:21]} 43... Kd6 {[%clk 0:00:18.3]} 44. Rg7 {[%clk 0:00:20.6]}
44... Re4+ {[%clk 0:00:18.6]} 45. c4 {[%clk 0:00:20.2]} 45... Rg4 {[%clk
0:00:19]} 46. a4 {[%clk 0:00:17.1]} 46... Bxg2 {[%clk 0:00:17.8]} 47. Bxg2
{[%clk 0:00:17.1]} 47... Rxg2 {[%clk 0:00:18.1]} 48. Kc3 {[%clk 0:00:15.8]}
48... Rg3+ {[%clk 0:00:17.6]} 49. Kb4 {[%clk 0:00:15.1]} 49... b6 {[%clk
0:00:17.7]} 50. Rb7 {[%clk 0:00:14]} 50... a5+ {[%clk 0:00:17.9]} 51. Kb5 {[%clk
0:00:13.9]} 51... Rb3+ {[%clk 0:00:18.5]} 52. Ka6 {[%clk 0:00:14.4]} 52... g5
{[%clk 0:00:18.6]} 53. Rxb6+ {[%clk 0:00:14]} 53... Rxb6+ {[%clk 0:00:18.1]} 54.
Kxb6 {[%clk 0:00:14.9]} 54... g4 {[%clk 0:00:18.2]} 55. c5+ {[%clk 0:00:15.4]}
55... Kd7 {[%clk 0:00:17.5]} 56. Kb7 {[%clk 0:00:15.5]} 56... g3 {[%clk
0:00:17.7]} 57. c6+ {[%clk 0:00:16]} 57... Kd6 {[%clk 0:00:15.9]} 58. c7 {[%clk
0:00:16.4]} 58... g2 {[%clk 0:00:16.3]} 59. c8=Q {[%clk 0:00:16.6]} 59... g1=Q
{[%clk 0:00:16.8]} 60. Qc7+ {[%clk 0:00:13.9]} 60... Kd5 {[%clk 0:00:17]} 61.
Qxa5+ {[%clk 0:00:14.1]} 61... Ke4 {[%clk 0:00:13.1]} 62. Qb4+ {[%clk 0:00:13]}
62... Qd4 {[%clk 0:00:05.5]} 63. Qxd4+ {[%clk 0:00:08.1]} 63... Kxd4 {[%clk
0:00:06.4]} 64. a5 {[%clk 0:00:08.7]} 64... f4 {[%clk 0:00:06.8]} 65. a6 {[%clk
0:00:09.2]} 65... f3 {[%clk 0:00:07.7]} 66. a7 {[%clk 0:00:09.7]} 66... f2
{[%clk 0:00:08.2]} 67. a8=Q {[%clk 0:00:10]} 67... f1=Q {[%clk 0:00:08.3]} 68.
Qa4+ {[%clk 0:00:09.5]} 68... Qc4 {[%clk 0:00:07.7]} 69. Qd1+ {[%clk 0:00:08.1]}
69... Ke5 {[%clk 0:00:07.4]} 70. Qh5+ {[%clk 0:00:07.6]} 70... Kd6 {[%clk
0:00:07.2]} 71. Qh6 {[%clk 0:00:06.3]} 71... Qc6+ {[%clk 0:00:07]} 72. Ka7
{[%clk 0:00:06.2]} 72... Qc5+ {[%clk 0:00:07.1]} 73. Kb7 {[%clk 0:00:06]} 73...
Qb5+ {[%clk 0:00:07.3]} 74. Ka7 {[%clk 0:00:06]} 74... Kd5 {[%clk 0:00:07.2]}
75. Qd2+ {[%clk 0:00:04.1]} 75... Kc6 {[%clk 0:00:07.2]} 76. Qg2+ {[%clk
0:00:02.8]} 76... Qd5 {[%clk 0:00:07.4]} 77. Qg6 {[%clk 0:00:03]} 77... Qa5+
{[%clk 0:00:07.1]} 78. Kb8 {[%clk 0:00:03.1]} 78... Qc7+ {[%clk 0:00:07.2]} 79.
Ka8 {[%clk 0:00:02.7]} 79... Qb7# {[%clk 0:00:08.1]} 0-1

[Event "Early-Titled-Tuesday-Blitz-March-05-2024"]
[Site "Chess.com"]
[Date "2024.03.05"]
[Round "7"]
[White "MITerryble"]
[Black "DuleMudule"]
[Result "1/2-1/2"]
[WhiteElo "3026"]
[BlackElo "2872"]
[TimeControl "180+1"]
[EndTime "9:21:37 PST"]
[Termination "Game drawn by repetition"]

1. d4 {[%clk 0:03:00.9]} 1... d5 {[%clk 0:03:00.1]} 2. Bg5 {[%clk 0:03:00.9]}
2... f6 {[%clk 0:02:59.5]} 3. Bc1 {[%clk 0:03:00.5]} 3... c5 {[%clk 0:02:56.3]}
4. dxc5 {[%clk 0:03:00.5]} 4... e5 {[%clk 0:02:55.7]} 5. e4 {[%clk 0:03:00.9]}
5... Be6 {[%clk 0:02:53.8]} 6. exd5 {[%clk 0:02:58.3]} 6... Qxd5 {[%clk
0:02:53.1]} 7. Qxd5 {[%clk 0:02:57.8]} 7... Bxd5 {[%clk 0:02:54]} 8. Nc3 {[%clk
0:02:58.6]} 8... Bc6 {[%clk 0:02:53.2]} 9. Be3 {[%clk 0:02:58.9]} 9... Ne7
{[%clk 0:02:48.4]} 10. Nb5 {[%clk 0:02:49.9]} 10... Nd5 {[%clk 0:02:31.4]} 11.
O-O-O {[%clk 0:02:49.1]} 11... Na6 {[%clk 0:02:27.9]} 12. Nd6+ {[%clk
0:02:38.2]} 12... Bxd6 {[%clk 0:02:13]} 13. cxd6 {[%clk 0:02:39.1]} 13... Nxe3
{[%clk 0:02:13.4]} 14. fxe3 {[%clk 0:02:38.4]} 14... Nc5 {[%clk 0:02:06.7]} 15.
Nf3 {[%clk 0:02:27.3]} 15... Ne4 {[%clk 0:01:53.6]} 16. Rg1 {[%clk 0:02:20.8]}
16... O-O-O {[%clk 0:01:49.2]} 17. Bd3 {[%clk 0:01:57.8]} 17... Nxd6 {[%clk
0:01:42.4]} 18. Nh4 {[%clk 0:01:52.3]} 18... e4 {[%clk 0:01:06.4]} 19. Be2
{[%clk 0:01:52.6]} 19... g5 {[%clk 0:01:06.2]} 20. Rxd6 {[%clk 0:01:48.4]} 20...
Rxd6 {[%clk 0:01:04.2]} 21. Nf5 {[%clk 0:01:49]} 21... Rdd8 {[%clk 0:01:01.7]}
22. Rf1 {[%clk 0:01:46.9]} 22... Kc7 {[%clk 0:01:00.7]} 23. Nd4 {[%clk
0:01:37.7]} 23... Bd7 {[%clk 0:00:50.9]} 24. Rxf6 {[%clk 0:01:33.7]} 24... Rdf8
{[%clk 0:00:50.4]} 25. Rh6 {[%clk 0:01:33.5]} 25... Rf2 {[%clk 0:00:48.6]} 26.
g3 {[%clk 0:01:34]} 26... Be8 {[%clk 0:00:42.2]} 27. b3 {[%clk 0:01:20.8]} 27...
Bg6 {[%clk 0:00:42]} 28. h4 {[%clk 0:01:21.3]} 28... Rh2 {[%clk 0:00:36.3]} 29.
Kb2 {[%clk 0:00:56.9]} 29... gxh4 {[%clk 0:00:33.5]} 30. gxh4 {[%clk 0:00:57.2]}
30... a6 {[%clk 0:00:32.4]} 31. a4 {[%clk 0:00:57]} 31... Kb8 {[%clk 0:00:30.5]}
32. h5 {[%clk 0:00:53.7]} 32... Be8 {[%clk 0:00:29.8]} 33. a5 {[%clk 0:00:44.5]}
33... Bd7 {[%clk 0:00:29.2]} 34. Rf6 {[%clk 0:00:42.4]} 34... Bc8 {[%clk
0:00:26.5]} 35. Rf7 {[%clk 0:00:38.8]} 35... Rd8 {[%clk 0:00:25.7]} 36. Bd1
{[%clk 0:00:30]} 36... Rh3 {[%clk 0:00:24.6]} 37. Rxh7 {[%clk 0:00:17.1]} 37...
Rxe3 {[%clk 0:00:24.5]} 38. c3 {[%clk 0:00:18]} 38... Re1 {[%clk 0:00:22.9]} 39.
Bc2 {[%clk 0:00:17.6]} 39... Re8 {[%clk 0:00:22.7]} 40. Rg7 {[%clk 0:00:08.9]}
40... Rh1 {[%clk 0:00:20.3]} 41. Rg5 {[%clk 0:00:04.8]} 41... e3 {[%clk
0:00:19.9]} 42. Bd3 {[%clk 0:00:05.2]} 42... Rh2+ {[%clk 0:00:19.5]} 43. Ka3
{[%clk 0:00:04.6]} 43... Rd2 {[%clk 0:00:18.2]} 44. Bc4 {[%clk 0:00:04.3]} 44...
Rh2 {[%clk 0:00:15.1]} 45. Be2 {[%clk 0:00:03.5]} 45... Bd7 {[%clk 0:00:14.9]}
46. Kb4 {[%clk 0:00:02.8]} 46... Bb5 {[%clk 0:00:14.8]} 47. Bxb5 {[%clk
0:00:02]} 47... axb5 {[%clk 0:00:14.7]} 48. Rg1 {[%clk 0:00:02.4]} 48... Rxh5
{[%clk 0:00:13.4]} 49. Re1 {[%clk 0:00:03.3]} 49... Rhe5 {[%clk 0:00:12.6]} 50.
Nxb5 {[%clk 0:00:03.3]} 50... e2 {[%clk 0:00:13.2]} 51. Nd4 {[%clk 0:00:03.7]}
51... Re4 {[%clk 0:00:13.3]} 52. Kc4 {[%clk 0:00:03.9]} 52... Re3 {[%clk
0:00:13.8]} 53. Kb4 {[%clk 0:00:02.6]} 53... Rc8 {[%clk 0:00:14.1]} 54. c4
{[%clk 0:00:02.6]} 54... Rce8 {[%clk 0:00:13.5]} 55. Kc5 {[%clk 0:00:03]} 55...
R8e5+ {[%clk 0:00:13.4]} 56. Kb4 {[%clk 0:00:03.2]} 56... R5e4 {[%clk
0:00:13.4]} 57. Kc5 {[%clk 0:00:02.9]} 57... Re5+ {[%clk 0:00:13.8]} 58. Kb4
{[%clk 0:00:03.2]} 58... Kc7 {[%clk 0:00:14.4]} 59. Nb5+ {[%clk 0:00:02.5]}
59... Kc6 {[%clk 0:00:13.6]} 60. Nc3 {[%clk 0:00:03.4]} 60... Rd3 {[%clk
0:00:12.7]} 61. Rxe2 {[%clk 0:00:02.7]} 61... Rxe2 {[%clk 0:00:11.8]} 62. Nxe2
{[%clk 0:00:03.6]} 62... Re3 {[%clk 0:00:11.1]} 63. Nd4+ {[%clk 0:00:03.5]}
63... Kc7 {[%clk 0:00:11.7]} 64. Kc5 {[%clk 0:00:03.3]} 64... Kb8 {[%clk
0:00:12.3]} 65. b4 {[%clk 0:00:03.1]} 65... Rh3 {[%clk 0:00:13]} 66. Kb5 {[%clk
0:00:02.9]} 66... Rh5+ {[%clk 0:00:13.9]} 67. c5 {[%clk 0:00:01.1]} 67... Rh4
{[%clk 0:00:14.8]} 68. Nb3 {[%clk 0:00:01.5]} 68... Rh6 {[%clk 0:00:14.6]} 69.
Nd2 {[%clk 0:00:02]} 69... Rh4 {[%clk 0:00:14.3]} 70. Nc4 {[%clk 0:00:02.9]}
70... Rd4 {[%clk 0:00:14.8]} 71. Nb6 {[%clk 0:00:03.8]} 71... Kc7 {[%clk
0:00:13.9]} 72. Ka4 {[%clk 0:00:03.2]} 72... Kc6 {[%clk 0:00:13.3]} 73. Na8
{[%clk 0:00:03.3]} 73... Kd5 {[%clk 0:00:13.5]} 74. Kb5 {[%clk 0:00:03.3]} 74...
Ke6 {[%clk 0:00:12.6]} 75. Nb6 {[%clk 0:00:03.3]} 75... Ke7 {[%clk 0:00:13]} 76.
Nc4 {[%clk 0:00:03.2]} 76... Kd8 {[%clk 0:00:13.5]} 77. Nd6 {[%clk 0:00:04.1]}
77... Kc7 {[%clk 0:00:14]} 78. Ne8+ {[%clk 0:00:04.6]} 78... Kb8 {[%clk
0:00:13.3]} 79. Nd6 {[%clk 0:00:05.5]} 79... Kc7 {[%clk 0:00:13.4]} 80. Nc4
{[%clk 0:00:05.4]} 80... Rd5 {[%clk 0:00:13.3]} 81. Ne3 {[%clk 0:00:05.4]} 81...
Rd3 {[%clk 0:00:13.8]} 82. Nc2 {[%clk 0:00:05.7]} 82... Rd1 {[%clk 0:00:12.9]}
83. Na3 {[%clk 0:00:05.6]} 83... Rd4 {[%clk 0:00:12.7]} 84. Nc4 {[%clk
0:00:04.7]} 84... Rd3 {[%clk 0:00:13.3]} 85. Nd6 {[%clk 0:00:03.4]} 85... Rd4
{[%clk 0:00:13.6]} 1/2-1/2

[Event "Early-Titled-Tuesday-Blitz-March-05-2024"]
[Site "Chess.com"]
[Date "2024.03.05"]
[Round "7"]
[White "Neijin"]
[Black "ckgchess"]
[Result "0-1"]
[WhiteElo "2727"]
[BlackElo "2909"]
[TimeControl "180+1"]
[EndTime "9:21:39 PST"]
[Termination "ckgchess won by resignation"]

1. e4 {[%clk 0:03:00.9]} 1... c5 {[%clk 0:02:58.8]} 2. Nf3 {[%clk 0:03:00.5]}
2... d6 {[%clk 0:02:59.4]} 3. d4 {[%clk 0:03:00]} 3... cxd4 {[%clk 0:03:00.3]}
4. Nxd4 {[%clk 0:03:00.7]} 4... Nf6 {[%clk 0:03:00.9]} 5. Nc3 {[%clk 0:03:01.5]}
5... e5 {[%clk 0:03:01.3]} 6. Bb5+ {[%clk 0:03:00.7]} 6... Nbd7 {[%clk
0:03:01.3]} 7. Nf5 {[%clk 0:03:00.4]} 7... a6 {[%clk 0:03:01]} 8. Bxd7+ {[%clk
0:02:48.7]} 8... Qxd7 {[%clk 0:03:01.9]} 9. Ne3 {[%clk 0:02:03.1]} 9... Be7
{[%clk 0:03:00.3]} 10. Ned5 {[%clk 0:02:02]} 10... Nxd5 {[%clk 0:03:00.7]} 11.
Nxd5 {[%clk 0:02:02.9]} 11... Bd8 {[%clk 0:03:01.5]} 12. a4 {[%clk 0:02:01]}
12... O-O {[%clk 0:03:01.7]} 13. O-O {[%clk 0:01:56.5]} 13... Qc6 {[%clk
0:02:53.6]} 14. Qd3 {[%clk 0:01:50.4]} 14... Be6 {[%clk 0:02:51]} 15. Be3 {[%clk
0:01:30.5]} 15... Rc8 {[%clk 0:02:49.5]} 16. c3 {[%clk 0:01:29.9]} 16... f5
{[%clk 0:02:43.4]} 17. f3 {[%clk 0:01:21.2]} 17... Bxd5 {[%clk 0:02:37.6]} 18.
Qxd5+ {[%clk 0:01:17.8]} 18... Qxd5 {[%clk 0:02:37.7]} 19. exd5 {[%clk
0:01:18.7]} 19... Kf7 {[%clk 0:02:33.1]} 20. Rfc1 {[%clk 0:01:13.5]} 20... Bf6
{[%clk 0:02:14.3]} 21. c4 {[%clk 0:01:05.1]} 21... e4 {[%clk 0:02:12.6]} 22.
Rab1 {[%clk 0:00:59.3]} 22... exf3 {[%clk 0:02:10.7]} 23. gxf3 {[%clk
0:00:59.4]} 23... Rfe8 {[%clk 0:02:11.6]} 24. Bf2 {[%clk 0:00:55.3]} 24... Re2
{[%clk 0:02:02.4]} 25. b4 {[%clk 0:00:55.3]} 25... Bb2 {[%clk 0:01:46.6]} 26.
Kf1 {[%clk 0:00:47.3]} 26... Bxc1 {[%clk 0:01:42.9]} 27. Kxe2 {[%clk 0:00:47.2]}
27... Rxc4 {[%clk 0:01:43.6]} 28. Kd3 {[%clk 0:00:44]} 28... Rc8 {[%clk
0:01:36.8]} 29. b5 {[%clk 0:00:40.5]} 29... a5 {[%clk 0:01:26.6]} 30. Bb6 {[%clk
0:00:30.4]} 30... Bf4 {[%clk 0:01:16.6]} 31. h3 {[%clk 0:00:20.5]} 31... Be5
{[%clk 0:01:14.3]} 32. Bxa5 {[%clk 0:00:19.9]} 32... Ra8 {[%clk 0:01:10.3]} 33.
Bd2 {[%clk 0:00:16.9]} 33... Rxa4 {[%clk 0:01:10.2]} 34. Rc1 {[%clk 0:00:17.4]}
34... Ra3+ {[%clk 0:00:50.6]} 35. Ke2 {[%clk 0:00:17.6]} 35... b6 {[%clk
0:00:51.3]} 36. Rc7+ {[%clk 0:00:16.3]} 36... Kg6 {[%clk 0:00:52.1]} 37. Rd7
{[%clk 0:00:11.1]} 37... Rb3 {[%clk 0:00:42.8]} 38. f4 {[%clk 0:00:11]} 38...
Bf6 {[%clk 0:00:43.5]} 39. Rxd6 {[%clk 0:00:10.6]} 39... Rxb5 {[%clk 0:00:44.3]}
40. Be3 {[%clk 0:00:10.1]} 40... Rb2+ {[%clk 0:00:44.2]} 41. Kf3 {[%clk
0:00:10.4]} 41... b5 {[%clk 0:00:38.8]} 42. Rb6 {[%clk 0:00:11]} 42... Rb3
{[%clk 0:00:38.8]} 43. Ke2 {[%clk 0:00:10.6]} 43... Rb2+ {[%clk 0:00:27.2]} 44.
Kf3 {[%clk 0:00:10.4]} 44... Rb1 {[%clk 0:00:27.9]} 45. Ke2 {[%clk 0:00:10.2]}
45... b4 {[%clk 0:00:21.9]} 46. d6 {[%clk 0:00:10.5]} 46... Kf7 {[%clk
0:00:22.6]} 47. Bc5 {[%clk 0:00:08.8]} 47... b3 {[%clk 0:00:20.4]} 48. Rb7+
{[%clk 0:00:09.1]} 48... Ke6 {[%clk 0:00:20.4]} 49. d7 {[%clk 0:00:09.6]} 49...
b2 {[%clk 0:00:18.8]} 50. Bd4 {[%clk 0:00:06.1]} 50... Bd8 {[%clk 0:00:06]} 51.
Rxb2 {[%clk 0:00:04.8]} 51... Rxb2+ {[%clk 0:00:06.3]} 52. Bxb2 {[%clk
0:00:05.7]} 52... g6 {[%clk 0:00:06.6]} 53. Kf3 {[%clk 0:00:05.3]} 53... Kxd7
{[%clk 0:00:07.3]} 54. Bc1 {[%clk 0:00:06.1]} 54... Ke6 {[%clk 0:00:07.9]} 55.
Bd2 {[%clk 0:00:06.8]} 55... Kd5 {[%clk 0:00:08.3]} 56. Be1 {[%clk 0:00:07.2]}
56... Kc4 {[%clk 0:00:08.2]} 57. Bf2 {[%clk 0:00:07.8]} 57... Kd3 {[%clk
0:00:08.6]} 58. Bc5 {[%clk 0:00:07.3]} 58... Bf6 {[%clk 0:00:08.8]} 59. Bd6
{[%clk 0:00:07.5]} 59... Bd4 {[%clk 0:00:08.8]} 60. Be5 {[%clk 0:00:07.5]} 60...
Kc4 {[%clk 0:00:08.4]} 61. Bb8 {[%clk 0:00:07.7]} 61... Kd5 {[%clk 0:00:08.7]}
62. Bc7 {[%clk 0:00:08]} 62... Bc5 {[%clk 0:00:08.8]} 63. Ba5 {[%clk 0:00:08.3]}
63... Bd6 {[%clk 0:00:08.8]} 64. Bd2 {[%clk 0:00:08.7]} 64... Kc4 {[%clk
0:00:08.5]} 65. Be3 {[%clk 0:00:08.7]} 65... Kd3 {[%clk 0:00:08.9]} 66. Bb6
{[%clk 0:00:09.1]} 66... Kc2 {[%clk 0:00:08.9]} 67. Bd4 {[%clk 0:00:09.7]} 67...
Kd1 {[%clk 0:00:09.4]} 68. Be5 {[%clk 0:00:10.2]} 68... Be7 {[%clk 0:00:09.7]}
69. Kf2 {[%clk 0:00:09.4]} 69... Kd2 {[%clk 0:00:09.8]} 70. Kf3 {[%clk
0:00:09.5]} 70... Ke1 {[%clk 0:00:10.2]} 71. Bd4 {[%clk 0:00:08.5]} 71... Kf1
{[%clk 0:00:10.5]} 72. Bf2 {[%clk 0:00:08.4]} 72... Bd8 {[%clk 0:00:10.8]} 73.
Bg3 {[%clk 0:00:08.8]} 73... Bc7 {[%clk 0:00:11.2]} 74. Bh4 {[%clk 0:00:08.4]}
74... Kg1 {[%clk 0:00:11.3]} 75. Bg5 {[%clk 0:00:07.6]} 75... Kh2 {[%clk
0:00:11.7]} 76. h4 {[%clk 0:00:08.1]} 76... h5 {[%clk 0:00:07.2]} 77. Bf6 {[%clk
0:00:07.7]} 77... Kh3 {[%clk 0:00:07.3]} 78. Bg5 {[%clk 0:00:08.2]} 78... Ba5
{[%clk 0:00:07.8]} 79. Ke3 {[%clk 0:00:06.4]} 79... Kg4 {[%clk 0:00:08.7]} 80.
Kd4 {[%clk 0:00:06.4]} 80... Be1 {[%clk 0:00:07.3]} 81. Ke5 {[%clk 0:00:04.3]}
81... Bxh4 {[%clk 0:00:08.2]} 82. Kf6 {[%clk 0:00:04.5]} 82... Bxg5+ {[%clk
0:00:04.5]} 83. fxg5 {[%clk 0:00:05.4]} 83... f4 {[%clk 0:00:04.6]} 84. Kxg6
{[%clk 0:00:06.1]} 84... f3 {[%clk 0:00:05.5]} 85. Kh6 {[%clk 0:00:05.8]} 85...
f2 {[%clk 0:00:06.2]} 86. g6 {[%clk 0:00:06.7]} 86... f1=Q {[%clk 0:00:07.1]}
87. g7 {[%clk 0:00:07.6]} 87... Qf6+ {[%clk 0:00:07.5]} 0-1